bitfinex-derivatives/quotes_BTCF0:USTF0_20250208
["timestamp","ask_amount","ask_price","bid_price","bid_amount"]
[1739043929950,0.002,96580.0,96578.0,0.207075]
[1739043941558,0.002,96580.0,96576.0,0.3608]
[1739043941863,0.2070781,96577.0,96575.0,0.0504207]
[1739043942053,0.2070862,96574.0,96570.0,0.28441567]
[1739043942257,0.36332001,96580.0,96570.0,0.18557846]
[1739043942258,0.2070897,96572.0,96570.0,0.18557846]
[1739043942459,0.063,96571.0,96570.0,0.18557846]
[1739043942701,0.096,96571.0,96570.0,0.18557846]
[1739043943554,0.097,96571.0,96570.0,0.18557846]
[1739043944548,0.097,96571.0,96570.0,0.23801242]
[1739043944754,0.098,96571.0,96570.0,0.05243396]
[1739043944959,0.098,96571.0,96569.0,0.18557846]
[1739043945950,0.097,96571.0,96569.0,0.18557846]
[1739043946151,0.098,96571.0,96569.0,0.18557846]
[1739043946865,0.098,96571.0,96569.0,0.23705693]
[1739043947164,0.305092,96571.0,96569.0,0.23705693]
[1739043948859,0.665892,96571.0,96569.0,0.23705693]
[1739043949060,0.665892,96571.0,96569.0,0.05147847]
[1739043949255,0.4588,96571.0,96563.0,0.18557846]
[1739043949459,0.2071021,96566.0,96563.0,0.18557846]
[1739043950269,0.2071021,96566.0,96563.0,0.23701549]
[1739043950660,0.2081021,96566.0,96563.0,0.23701549]
[1739043950860,0.001,96566.0,96563.0,0.23701549]
[1739043951056,0.001,96566.0,96564.0,0.2071051]
[1739043951265,0.2071055,96565.0,96563.0,0.23701549]
[1739043952970,0.2071055,96565.0,96563.0,0.05143703]
[1739043953172,0.2071055,96565.0,96560.0,0.2071139]
[1739043953359,0.2071063,96564.0,96560.0,0.2071139]
[1739043954572,0.2091063,96564.0,96560.0,0.2071139]
[1739043955070,0.2091063,96564.0,96560.0,0.25822196]
[1739043955974,0.2091063,96564.0,96560.0,0.05110806]
[1739043956164,0.2091063,96564.0,96561.0,0.2071119]
[1739043958472,0.2071167,96559.0,96558.0,0.05302992]
[1739043958772,0.2071253,96556.0,96554.0,0.54637846]
[1739043959167,0.2071253,96556.0,96554.0,0.18557846]
[1739043960476,0.2091253,96556.0,96554.0,0.23794741]
[1739043960775,0.2091253,96556.0,96554.0,0.05236895]
[1739043960973,0.2091253,96556.0,96553.0,1.4047696]
[1739043961274,0.2091253,96556.0,96553.0,1.4040896]
[1739043961873,0.2091253,96556.0,96553.0,1.45478009]
[1739043962469,0.2091253,96556.0,96553.0,1.24765049]
[1739043962870,0.002,96556.0,96555.0,0.2071253]
[1739043963273,0.00015527,96568.0,96556.0,0.2071227]
[1739043963274,0.15744141,96567.0,96556.0,0.2071227]
[1739043963571,0.15744141,96567.0,96557.0,0.19428292]
[1739043963770,0.00015527,96568.0,96557.0,0.19428292]
[1739043963969,0.00015527,96568.0,96567.0,0.3608]
[1739043964170,0.00015527,96568.0,96567.0,0.4314]
[1739043965876,0.00115527,96568.0,96567.0,0.4314]
[1739043966082,0.00215527,96568.0,96567.0,0.4324]
[1739043966581,0.00115527,96568.0,96567.0,0.4324]
[1739043966966,0.00015527,96568.0,96567.0,0.4324]
[1739043969283,0.00015527,96568.0,96567.0,0.48439103]
[1739043970182,0.00015527,96568.0,96567.0,0.12359103]
[1739043970878,0.00115527,96568.0,96567.0,0.12359103]
[1739043972275,0.00015527,96568.0,96567.0,0.12259103]
[1739043972582,0.00015527,96568.0,96567.0,0.15639103]
[1739043973087,0.00015527,96568.0,96567.0,0.15539103]
[1739043973278,0.00155362,96576.0,96575.0,0.2070824]
[1739043973587,0.00155362,96576.0,96575.0,0.5678824]
[1739043974581,0.00355362,96576.0,96575.0,0.5678824]
[1739043975588,0.00455362,96576.0,96575.0,0.5678824]
[1739043976584,0.00255362,96576.0,96575.0,0.5678824]
[1739043976778,0.00155362,96576.0,96575.0,0.5678824]
[1739043976990,0.00255362,96576.0,96575.0,0.5688824]
[1739043978086,0.00015527,96585.0,96584.0,0.2070631]
[1739043978281,0.00015527,96585.0,96584.0,0.2776231]
[1739043979390,0.00015527,96585.0,96584.0,0.2786231]
[1739043980894,0.15465384,96594.0,96592.0,0.2070455]
[1739043981080,0.15465384,96594.0,96592.0,0.5678455]
[1739043982083,0.15765384,96594.0,96592.0,0.5678455]
[1739043982483,0.16065384,96594.0,96592.0,0.5678455]
[1739043982693,0.006,96594.0,96592.0,0.5678455]
[1739043982878,0.002,96594.0,96592.0,0.5678455]
[1739043983082,0.005,96594.0,96592.0,0.5678455]
[1739043986184,0.15465384,96599.0,96598.0,0.2070331]
[1739043986377,0.15465384,96599.0,96598.0,0.2775531]
[1739043987286,0.00015527,96603.0,96598.0,0.07052]
[1739043987487,0.00015527,96603.0,96602.0,0.2070245]
[1739043988992,0.00715527,96603.0,96602.0,0.2070245]
[1739043989384,0.01315527,96603.0,96602.0,0.2070245]
[1739043989585,0.01315527,96603.0,96602.0,0.25950537]
[1739044001286,0.01315527,96603.0,96602.0,0.33002537]
[1739044001692,0.00715527,96603.0,96602.0,0.26250537]
[1739044001892,0.00115527,96603.0,96602.0,0.33302537]
[1739044002096,0.00115527,96603.0,96602.0,0.33502537]
[1739044003202,0.00115527,96603.0,96602.0,0.33302537]
[1739044003396,0.00115527,96603.0,96602.0,0.33502537]
[1739044004806,0.00115527,96603.0,96602.0,0.33702537]
[1739044006109,0.00115527,96603.0,96602.0,0.33802537]
[1739044006601,0.00115527,96603.0,96602.0,0.33502537]
[1739044006909,0.00115527,96603.0,96602.0,0.33802537]
[1739044007209,0.00115527,96603.0,96602.0,0.33502537]
[1739044007507,0.00115527,96603.0,96602.0,0.33702537]
[1739044009400,0.00115527,96603.0,96602.0,0.33402537]
[1739044009601,0.00115527,96603.0,96602.0,0.33702537]
[1739044011197,0.00015527,96603.0,96602.0,0.33702537]
[1739044011405,0.00115527,96603.0,96602.0,0.33702537]
[1739044011909,0.00015527,96603.0,96602.0,0.33302537]
[1739044012112,0.00115527,96603.0,96602.0,0.33702537]
[1739044013205,0.00115527,96603.0,96602.0,0.33402537]
[1739044013400,0.00115527,96603.0,96602.0,0.33702537]
[1739044015910,0.00115527,96603.0,96602.0,0.33402537]
[1739044016110,0.00115527,96603.0,96602.0,0.33702537]
[1739044016305,0.05149146,96603.0,96602.0,0.33702537]
[1739044016505,0.05149146,96603.0,96602.0,0.33402537]
[1739044016714,0.05149146,96603.0,96602.0,0.33702537]
[1739044017101,0.05149146,96603.0,96602.0,0.26350537]
[1739044017305,0.05149146,96603.0,96602.0,0.33698537]
[1739044018707,0.05149146,96603.0,96602.0,0.33398537]
[1739044018907,0.05149146,96603.0,96602.0,0.33698537]
[1739044019115,0.05149146,96603.0,96602.0,0.05948087]
[1739044019310,0.05149146,96603.0,96602.0,0.05648087]
[1739044019506,0.05149146,96603.0,96602.0,0.05948087]
[1739044019818,0.34526421,96603.0,96602.0,0.05948087]
[1739044020523,0.34526421,96603.0,96602.0,0.05848087]
[1739044021521,0.34426421,96603.0,96602.0,0.05848087]
[1739044022320,0.34426421,96603.0,96602.0,0.05748087]
[1739044022910,0.34426421,96603.0,96602.0,0.05848087]
[1739044023420,0.34426421,96603.0,96602.0,0.05548087]
[1739044023612,0.44387771,96603.0,96602.0,0.05648087]
[1739044024615,0.44387771,96603.0,96602.0,0.05348087]
[1739044024923,0.44387771,96603.0,96602.0,0.05648087]
[1739044025220,0.44387771,96603.0,96602.0,0.05548087]
[1739044025518,0.44387771,96603.0,96602.0,0.05648087]
[1739044026416,0.44387771,96603.0,96602.0,0.05248087]
[1739044026617,0.44387771,96603.0,96602.0,0.002]
[1739044027319,0.44387771,96603.0,96602.0,0.001]
[1739044027707,0.25751386,96603.0,96602.0,0.001]
[1739044029214,0.25851386,96603.0,96602.0,0.001]
[1739044029423,0.25851386,96603.0,96600.0,0.2070278]
[1739044030119,0.05149146,96603.0,96602.0,0.2070245]
[1739044030914,0.01212559,96603.0,96602.0,0.2070245]
[1739044031123,0.18636385,96605.0,96604.0,0.2070203]
[1739044031320,0.18636385,96605.0,96604.0,0.2774603]
[1739044031820,0.24655041,96619.0,96607.0,0.2070138]
[1739044031821,0.18636385,96608.0,96607.0,0.2070138]
[1739044032021,0.12493899,96608.0,96607.0,0.2070138]
[1739044033221,0.10691899,96608.0,96607.0,0.2070138]
[1739044033622,0.10491899,96608.0,96607.0,0.2110138]
[1739044033928,0.10591899,96608.0,96607.0,0.2140138]
[1739044035126,0.002,96608.0,96607.0,0.2140138]
[1739044035319,0.002,96608.0,96607.0,0.2160138]
[1739044036720,0.002,96608.0,96607.0,0.5768138]
[1739044037515,0.001,96608.0,96607.0,0.5768138]
[1739044037825,0.002,96608.0,96607.0,0.5768138]
[1739044038326,0.002,96608.0,96607.0,0.5758138]
[1739044039421,0.002,96608.0,96607.0,0.5718138]
[1739044039422,0.001,96608.0,96607.0,0.5718138]
[1739044039617,0.002,96608.0,96607.0,0.5758138]
[1739044041618,0.002,96608.0,96607.0,0.2150138]
[1739044041823,0.002,96608.0,96607.0,0.5758138]
[1739044043731,0.001,96608.0,96607.0,0.5718138]
[1739044043922,0.002,96608.0,96607.0,0.5758138]
[1739044044541,0.001,96608.0,96607.0,0.5718138]
[1739044044729,0.002,96608.0,96607.0,0.5758138]
[1739044044919,0.001,96608.0,96607.0,0.5718138]
[1739044045120,0.002,96608.0,96607.0,0.5758138]
[1739044045521,0.15415381,96612.0,96611.0,0.2070053]
[1739044046321,0.001,96608.0,96607.0,0.3688]
[1739044046521,0.001,96608.0,96607.0,0.5758138]
[1739044047122,0.001,96612.0,96611.0,0.2110053]
[1739044047427,0.001,96612.0,96611.0,0.2150053]
[1739044047621,0.002,96612.0,96611.0,0.2150053]
[1739044047820,0.002,96612.0,96611.0,0.2110053]
[1739044047821,0.001,96612.0,96611.0,0.2110053]
[1739044048023,0.00015527,96617.0,96607.0,0.3648]
[1739044048229,0.00015527,96617.0,96615.0,0.206996]
[1739044048429,0.00015527,96617.0,96616.0,0.07044]
[1739044050534,0.00115527,96617.0,96616.0,0.07544]
[1739044050924,0.00115527,96617.0,96616.0,0.07844]
[1739044051324,0.00115527,96617.0,96616.0,0.07544]
[1739044051625,0.00115527,96617.0,96616.0,0.07844]
[1739044052036,0.00115527,96617.0,96616.0,0.07744]
[1739044052737,0.00015527,96617.0,96616.0,0.07244]
[1739044052927,0.00015527,96617.0,96616.0,0.07644]
[1739044053436,0.00015527,96617.0,96616.0,0.07444]
[1739044053627,0.00015527,96617.0,96616.0,0.11269242]
[1739044054027,0.00015527,96617.0,96616.0,0.11069242]
[1739044054229,0.00015527,96617.0,96616.0,0.11269242]
[1739044054630,0.05048364,96617.0,96616.0,0.11269242]
[1739044054839,0.05048364,96617.0,96616.0,0.10869242]
[1739044055140,0.05048364,96617.0,96616.0,0.10969242]
[1739044055333,0.05048364,96617.0,96616.0,0.11069242]
[1739044056835,0.05048364,96617.0,96616.0,0.10769242]
[1739044057141,0.05048364,96617.0,96616.0,0.11069242]
[1739044057731,0.05048364,96617.0,96616.0,0.10969242]
[1739044062042,0.00015527,96617.0,96616.0,0.10969242]
[1739044066439,0.05032912,96618.0,96617.0,0.2069924]
[1739044068143,0.09603834,96622.0,96621.0,0.2069838]
[1739044068338,0.09603834,96622.0,96621.0,0.5677838]
[1739044069435,0.09703834,96622.0,96621.0,0.5727838]
[1739044070341,0.206948,96638.0,96635.0,0.2069527]
[1739044071143,0.36132001,96639.0,96635.0,0.2069527]
[1739044071938,0.00255286,96637.0,96635.0,0.2069527]
[1739044072448,0.2069403,96642.0,96633.0,0.0704]
[1739044072751,0.002,96637.0,96636.0,0.2069517]
[1739044073051,0.002,96637.0,96636.0,0.13577734]
[1739044073641,0.2166982,96646.0,96634.0,0.2069553]
[1739044073840,0.001,96642.0,96641.0,0.206941]
[1739044074042,0.001,96642.0,96641.0,0.567741]
[1739044074241,0.00015527,96646.0,96642.0,0.2069376]
[1739044074553,0.00015527,96646.0,96644.0,0.2069325]
[1739044074851,0.00015527,96646.0,96645.0,0.07036]
[1739044075352,0.00015527,96646.0,96645.0,0.2772924]
[1739044075745,0.00515527,96646.0,96645.0,0.2772924]
[1739044076145,0.00615527,96646.0,96645.0,0.2772924]
[1739044076544,0.00515527,96646.0,96645.0,0.2772924]
[1739044076740,0.01115527,96646.0,96645.0,0.2772924]
[1739044077246,0.01215527,96646.0,96645.0,0.2782924]
[1739044079947,0.16694667,96646.0,96645.0,0.2782924]
[1739044081455,0.16694667,96646.0,96645.0,0.31575098]
[1739044084756,0.01215527,96646.0,96645.0,0.31575098]
[1739044088657,0.01215527,96646.0,96645.0,0.67655098]
[1739044098554,0.01215527,96646.0,96645.0,0.31571098]
[1739044104063,0.01215527,96646.0,96645.0,0.24539098]
[1739044104263,0.01215527,96646.0,96645.0,0.31571098]
[1739044107176,0.06246845,96646.0,96645.0,0.31571098]
[1739044108576,0.12786845,96646.0,96645.0,0.31571098]
[1739044110572,0.12786845,96646.0,96645.0,0.03845858]
[1739044118080,0.33479875,96646.0,96645.0,0.03845858]
[1739044120189,0.33479875,96646.0,96640.0,0.76608]
[1739044120190,0.206941,96641.0,96640.0,0.76608]
[1739044120502,0.567741,96641.0,96640.0,0.69426281]
[1739044121396,0.571741,96641.0,96640.0,0.69426281]
[1739044122098,0.571741,96641.0,96640.0,0.72568182]
[1739044123693,0.575741,96641.0,96640.0,0.72568182]
[1739044125001,0.214941,96641.0,96640.0,0.72568182]
[1739044125301,0.575741,96641.0,96640.0,0.72568182]
[1739044125505,0.2069581,96633.0,96632.0,0.00015527]
[1739044125817,0.5677581,96633.0,96632.0,0.00015527]
[1739044126795,0.5677581,96633.0,96632.0,0.03181585]
[1739044127103,0.5687581,96633.0,96632.0,0.00015527]
[1739044130498,0.2079581,96633.0,96632.0,0.00015527]
[1739044130697,0.25827128,96633.0,96632.0,0.00015527]
[1739044131394,0.61907128,96633.0,96632.0,0.00015527]
[1739044133906,0.25827128,96633.0,96632.0,0.00015527]
[1739044134405,0.44422917,96633.0,96632.0,0.00015527]
[1739044135895,0.80502917,96633.0,96632.0,0.00015527]
[1739044139511,0.5687581,96633.0,96632.0,0.00015527]
[1739044139899,0.2079581,96633.0,96632.0,0.00015527]
[1739044140099,0.5687581,96633.0,96632.0,0.00015527]
[1739044145598,0.5687581,96633.0,96620.0,0.06482937]
[1739044145599,0.3618,96633.0,96620.0,0.06482937]
[1739044145801,0.2069838,96621.0,96620.0,0.06482937]
[1739044146005,0.2069908,96618.0,96615.0,0.76604]
[1739044146211,0.2069935,96617.0,96615.0,0.7654]
[1739044147515,0.2089935,96617.0,96615.0,0.7754]
[1739044148820,0.2089935,96617.0,96615.0,0.80723987]
[1739044155419,0.2089935,96617.0,96615.0,1.01423647]
[1739044155623,0.002,96617.0,96615.0,1.01423647]
[1739044163927,0.002,96617.0,96615.0,0.24883647]
[1739044164125,0.1551329,96616.0,96615.0,0.24883647]
[1739044165328,0.1551329,96616.0,96615.0,0.24283647]
[1739044165529,0.1561329,96616.0,96615.0,0.24883647]
[1739044166121,0.1571329,96616.0,96615.0,0.24883647]
[1739044166321,0.1571329,96616.0,96615.0,0.04183987]
[1739044167733,0.3641274,96616.0,96615.0,0.04183987]
[1739044171129,0.25932295,96616.0,96615.0,0.04183987]
[1739044174422,0.2089945,96616.0,96615.0,0.04183987]
[1739044175321,0.002,96616.0,96615.0,0.04183987]
[1739044176318,0.2069844,96621.0,96615.0,0.04183987]
[1739044176521,0.1552176,96623.0,96620.0,0.2069856]
[1739044177829,0.1552176,96623.0,96620.0,0.2109856]
[1739044178136,0.001,96621.0,96620.0,0.2109856]
[1739044179021,0.1552176,96623.0,96620.0,0.2109856]
[1739044179225,0.001,96623.0,96620.0,0.39904874]
[1739044179430,0.001,96623.0,96620.0,0.40304874]
[1739044179827,0.00015527,96626.0,96621.0,0.2069831]
[1739044180027,0.00015527,96626.0,96622.0,0.0702]
[1739044181333,0.1552176,96628.0,96622.0,0.0702]
[1739044181526,0.1552176,96628.0,96626.0,0.2069721]
[1739044181925,0.1552176,96628.0,96627.0,0.3608]
[1739044182633,0.1562176,96628.0,96627.0,0.3608]
[1739044183340,0.001,96628.0,96627.0,0.3608]
[1739044183922,0.001,96628.0,96627.0,0.3618]
[1739044184127,0.1552176,96630.0,96627.0,0.3648]
[1739044184936,0.1552176,96630.0,96627.0,0.5717701]
[1739044185235,0.1552176,96630.0,96627.0,0.5687701]
[1739044185436,0.1552176,96630.0,96627.0,0.5717701]
[1739044186234,0.1552176,96630.0,96627.0,0.5707701]
[1739044186435,0.1552176,96630.0,96627.0,0.5717701]
[1739044186637,0.1552176,96630.0,96627.0,0.2109701]
[1739044186839,0.1552176,96630.0,96627.0,0.5717701]
[1739044187339,0.1552176,96635.0,96627.0,0.40346576]
[1739044187629,0.2069651,96630.0,96627.0,0.40346576]
[1739044189135,0.2069651,96630.0,96627.0,0.40046576]
[1739044189337,0.2069651,96630.0,96627.0,0.40346576]
[1739044189639,0.2069674,96629.0,96627.0,0.40346576]
[1739044189838,0.0327,96628.0,96627.0,0.40246576]
[1739044190041,0.0327,96628.0,96627.0,0.40346576]
[1739044190935,0.0327,96628.0,96627.0,0.40246576]
[1739044191138,0.0327,96628.0,96627.0,0.40346576]
[1739044191942,0.0327,96628.0,96627.0,0.40046576]
[1739044192242,0.0327,96628.0,96627.0,0.40346576]
[1739044194546,0.08302346,96628.0,96627.0,0.40346576]
[1739044198737,0.0327,96628.0,96627.0,0.40346576]
[1739044200441,0.15558806,96629.0,96627.0,0.40346576]
[1739044200649,0.07799953,96633.0,96627.0,0.40346576]
[1739044200945,0.07799953,96633.0,96628.0,0.0626]
[1739044201444,0.07799953,96633.0,96632.0,0.2069602]
[1739044203150,0.07899953,96633.0,96632.0,0.2069602]
[1739044204054,0.07899953,96633.0,96632.0,0.2079602]
[1739044204642,0.04957953,96633.0,96632.0,0.2079602]
[1739044206061,0.04362496,96633.0,96632.0,0.2079602]
[1739044207060,0.02462496,96633.0,96632.0,0.2079602]
[1739044210161,0.00015527,96637.0,96636.0,0.2069517]
[1739044210464,0.00015527,96637.0,96636.0,0.2771117]
[1739044211264,0.00215527,96637.0,96636.0,0.2771117]
[1739044211455,0.00215527,96637.0,96636.0,0.6379117]
[1739044212353,0.00415527,96637.0,96636.0,0.6379117]
[1739044218968,0.00415527,96637.0,96636.0,0.2771117]
[1739044219964,0.21110477,96637.0,96636.0,0.07016]
[1739044222673,0.26142324,96637.0,96636.0,0.07016]
[1739044223975,0.26142324,96637.0,96635.0,0.3608]
[1739044224275,0.0609,96636.0,96635.0,0.3608]
[1739044224467,0.0609,96636.0,96635.0,0.43092]
[1739044226172,0.0639,96636.0,96635.0,0.43092]
[1739044226877,0.0639,96636.0,96635.0,0.07012]
[1739044229581,0.0639,96636.0,96628.0,0.2069667]
[1739044229879,0.2069542,96635.0,96629.0,0.07012]
[1739044230376,0.0323,96634.0,96629.0,0.07012]
[1739044232480,0.0323,96634.0,96629.0,0.07312]
[1739044233575,0.0323,96634.0,96629.0,0.003]
[1739044233775,0.0323,96634.0,96630.0,0.07012]
[1739044234182,0.05032137,96633.0,96630.0,0.07012]
[1739044235181,0.05032137,96633.0,96629.0,0.2079655]
[1739044235381,0.05032137,96633.0,96631.0,0.07012]
[1739044236086,0.18295656,96639.0,96631.0,0.43092]
[1739044236274,0.3021188,96652.0,96634.0,0.3608]
[1739044236480,0.3021188,96652.0,96646.0,0.2069296]
[1739044236677,0.3021188,96652.0,96644.0,0.07012]
[1739044236883,0.0952,96652.0,96650.0,0.2069199]
[1739044238486,0.1012,96652.0,96650.0,0.2069199]
[1739044238872,0.1012,96652.0,96650.0,0.2079199]
[1739044239088,0.1022,96652.0,96650.0,0.2079199]
[1739044239281,0.1102,96652.0,96650.0,0.2089199]
[1739044239598,0.1102,96652.0,96650.0,0.24281223]
[1739044241584,0.1102,96652.0,96650.0,0.03589233]
[1739044241780,0.3171181,96652.0,96650.0,0.03589233]
[1739044251294,0.3171181,96652.0,96650.0,0.24281363]
[1739044251696,0.3101181,96652.0,96650.0,0.24181363]
[1739044252991,0.3101181,96652.0,96650.0,0.24381363]
[1739044254008,0.45719737,96652.0,96650.0,0.24281363]
[1739044254187,0.45719737,96652.0,96650.0,0.24381363]
[1739044255191,0.36199737,96652.0,96650.0,0.24381363]
[1739044255386,0.36199737,96652.0,96650.0,0.24481363]
[1739044256299,0.15507927,96652.0,96650.0,0.24481363]
[1739044256690,0.15507927,96652.0,96650.0,0.24681363]
[1739044257300,0.15507927,96652.0,96650.0,0.24481363]
[1739044257607,0.0503121,96651.0,96650.0,0.03789233]
[1739044257895,0.0503121,96651.0,96650.0,0.24481403]
[1739044258099,0.0503121,96651.0,96650.0,0.24781403]
[1739044258800,0.0503121,96651.0,96650.0,0.24681403]
[1739044261890,0.0503121,96651.0,96650.0,0.24481403]
[1739044262206,0.0503121,96651.0,96650.0,0.24681403]
[1739044262605,0.15495328,96651.0,96650.0,0.24681403]
[1739044265310,0.00155238,96656.0,96651.0,0.2069176]
[1739044265713,0.00155238,96656.0,96650.0,0.03989233]
[1739044265901,0.00155238,96656.0,96655.0,0.206911]
[1739044266210,0.00155238,96656.0,96655.0,0.276991]
[1739044266413,0.20846118,96656.0,96655.0,0.276991]
[1739044268199,0.20846118,96656.0,96655.0,0.277991]
[1739044268615,0.28523979,96656.0,96655.0,0.277991]
[1739044273013,0.33555027,96656.0,96655.0,0.277991]
[1739044275505,0.33555027,96656.0,96655.0,0.07108]
[1739044279710,0.25877166,96656.0,96655.0,0.07108]
[1739044281410,0.25877166,96656.0,96655.0,0.001]
[1739044282917,0.2069195,96651.0,96650.0,0.03389233]
[1739044283119,0.206926,96648.0,96647.0,0.07004]
[1739044284318,0.206926,96648.0,96647.0,0.07304]
[1739044285817,0.206926,96648.0,96647.0,0.07804]
[1739044288020,0.33383612,96648.0,96647.0,0.07804]
[1739044291727,0.25723648,96648.0,96647.0,0.07804]
[1739044293824,0.25723648,96648.0,96647.0,0.008]
[1739044294625,0.206926,96648.0,96647.0,0.008]
[1739044303831,0.206926,96648.0,96647.0,0.003]
[1739044304032,0.206926,96648.0,96647.0,0.005]
[1739044304339,0.206926,96648.0,96647.0,0.008]
[1739044304739,0.206926,96648.0,96647.0,0.006]
[1739044305430,0.206926,96648.0,96647.0,0.003]
[1739044305625,0.206926,96648.0,96647.0,0.002]
[1739044305833,0.207926,96648.0,96647.0,0.002]
[1739044306635,0.001,96648.0,96643.0,0.03399521]
[1739044306836,0.001,96648.0,96640.0,0.13486937]
[1739044307042,0.2069409,96641.0,96640.0,0.13486937]
[1739044307235,0.2069409,96641.0,96640.0,0.07004]
[1739044308043,0.2069409,96641.0,96640.0,0.07104]
[1739044308547,0.2069409,96641.0,96640.0,0.09971316]
[1739044310044,0.2069409,96641.0,96640.0,0.10171316]
[1739044310342,0.2069409,96641.0,96640.0,0.05197891]
[1739044312637,0.2069409,96641.0,96640.0,0.03167316]
[1739044312842,0.25725843,96641.0,96640.0,0.03167316]
[1739044317547,0.36213739,96641.0,96640.0,0.03167316]
[1739044326056,0.2069409,96641.0,96640.0,0.03167316]
[1739044328660,0.5677409,96641.0,96640.0,0.03167316]
[1739044329357,0.69531488,96641.0,96640.0,0.03167316]
[1739044331347,0.69531488,96641.0,96640.0,0.01750406]
[1739044331554,0.2069624,96631.0,96629.0,0.76532]
[1739044332956,0.2079624,96631.0,96629.0,0.77032]
[1739044333755,0.3012624,96631.0,96629.0,0.77032]
[1739044333959,0.3022624,96631.0,96629.0,0.77732]
[1739044334566,0.3022624,96631.0,96629.0,0.80603076]
[1739044337176,0.05032138,96630.0,96629.0,0.80603076]
[1739044338257,0.05132138,96630.0,96629.0,0.80603076]
[1739044339570,0.05232138,96630.0,96629.0,0.012]
[1739044340365,0.41312138,96630.0,96629.0,0.012]
[1739044340568,0.3628,96630.0,96629.0,0.012]
[1739044341971,0.3628,96630.0,96629.0,0.00684337]
[1739044344772,0.4396798,96630.0,96629.0,0.00684337]
[1739044346070,0.8004798,96630.0,96629.0,0.00684337]
[1739044347166,0.4396798,96630.0,96629.0,0.00684337]
[1739044347566,0.8004798,96630.0,96629.0,0.00684337]
[1739044348670,0.8508128,96630.0,96629.0,0.00684337]
[1739044351867,0.1292128,96630.0,96629.0,0.00684337]
[1739044352071,0.8508128,96630.0,96629.0,0.00684337]
[1739044352778,0.773933,96630.0,96629.0,0.00684337]
[1739044353175,0.413133,96630.0,96629.0,0.00684337]
[1739044355771,0.052333,96630.0,96629.0,0.00684337]
[1739044355967,0.773933,96630.0,96629.0,0.00684337]
[1739044356779,0.2069666,96629.0,96627.0,0.02966677]
[1739044357379,0.7216,96628.0,96627.0,0.02966677]
[1739044357767,0.7216,96628.0,96627.0,0.01583679]
[1739044357983,0.7216,96628.0,96620.0,0.06482937]
[1739044358281,0.2069838,96621.0,96620.0,0.06482937]
[1739044358579,0.2070027,96613.0,96611.0,0.06482937]
[1739044358774,0.56828881,96628.0,96627.0,0.004]
[1739044358981,0.9285688,96628.0,96627.0,0.004]
[1739044359176,0.9285688,96628.0,96627.0,0.002]
[1739044359482,0.9295688,96628.0,96627.0,0.002]
[1739044359692,0.2079838,96621.0,96620.0,0.004]
[1739044359983,0.2079838,96621.0,96620.0,0.002]
[1739044360185,0.5687838,96621.0,96620.0,0.002]
[1739044361279,0.2070031,96612.0,96611.0,0.06482937]
[1739044361582,0.2070031,96612.0,96610.0,0.2070064]
[1739044363089,0.2080031,96612.0,96610.0,0.03808604]
[1739044363582,0.2090031,96612.0,96610.0,0.04008604]
[1739044365586,0.2070052,96611.0,96610.0,0.04008604]
[1739044366980,0.2080052,96611.0,96610.0,0.04008604]
[1739044367579,0.2080052,96611.0,96610.0,0.03808604]
[1739044367882,0.2090052,96611.0,96610.0,0.04008604]
[1739044375786,0.36410382,96611.0,96610.0,0.04008604]
[1739044380283,0.2090052,96611.0,96610.0,0.04008604]
[1739044392598,0.2080052,96611.0,96610.0,0.03808604]
[1739044392903,0.2090052,96611.0,96610.0,0.04008604]
[1739044393202,0.2080052,96611.0,96610.0,0.03808604]
[1739044393393,0.2090052,96611.0,96610.0,0.04008604]
[1739044400608,0.002,96611.0,96610.0,0.04008604]
[1739044404112,0.001,96611.0,96610.0,0.03808604]
[1739044404299,0.002,96611.0,96610.0,0.04008604]
[1739044405308,0.001,96611.0,96610.0,0.03808604]
[1739044405525,0.002,96611.0,96610.0,0.04008604]
[1739044408317,0.2090052,96611.0,96610.0,0.04008604]
[1739044409117,0.5698052,96611.0,96610.0,0.04008604]
[1739044410105,0.5698052,96611.0,96610.0,0.004]
[1739044410310,0.5688052,96611.0,96610.0,0.002]
[1739044410516,0.5698052,96611.0,96610.0,0.004]
[1739044411417,0.5688052,96611.0,96610.0,0.004]
[1739044411923,0.5678052,96611.0,96610.0,0.002]
[1739044412233,0.5678052,96611.0,96610.0,0.004]
[1739044414220,0.61814339,96611.0,96610.0,0.004]
[1739044417922,0.25734339,96611.0,96610.0,0.004]
[1739044418124,0.61814339,96611.0,96610.0,0.004]
[1739044419024,0.41113819,96611.0,96608.0,0.03636412]
[1739044419327,0.25734339,96611.0,96610.0,0.004]
[1739044419623,0.61814339,96611.0,96610.0,0.004]
[1739044420214,0.5678052,96611.0,96610.0,0.004]
[1739044421025,0.5678052,96611.0,96610.0,0.002]
[1739044421618,0.5678052,96611.0,96610.0,0.004]
[1739044421924,0.5678052,96611.0,96610.0,0.002]
[1739044422816,0.5678052,96611.0,96610.0,0.004]
[1739044425316,0.2070052,96611.0,96610.0,0.004]
[1739044427526,0.25734151,96611.0,96610.0,0.004]
[1739044434832,0.02564872,96938.0,96610.0,0.004]
[1739044434833,0.3608,96643.0,96610.0,0.43468]
[1739044435041,0.2069491,96638.0,96629.0,0.2069665]
[1739044435241,0.2069491,96638.0,96626.0,0.3608]
[1739044435242,0.2069491,96638.0,96633.0,0.2069581]
[1739044435533,0.3608,96643.0,96633.0,0.2069581]
[1739044435832,0.48456153,96642.0,96633.0,0.2069581]
[1739044436033,0.48508154,96642.0,96633.0,0.2069581]
[1739044437433,0.22254293,96634.0,96633.0,0.2069581]
[1739044437637,0.22354293,96634.0,96633.0,0.2069581]
[1739044438336,0.23154293,96634.0,96633.0,0.2069581]
[1739044438632,0.48508154,96642.0,96633.0,0.3608]
[1739044438633,0.00052001,96642.0,96633.0,0.3608]
[1739044438839,0.0001028,96643.0,96641.0,0.2069409]
[1739044440033,0.014,96642.0,96641.0,0.2069409]
[1739044440639,0.008,96642.0,96641.0,0.2079409]
[1739044441235,0.008,96642.0,96641.0,0.2069409]
[1739044441436,0.008,96642.0,96641.0,0.2099409]
[1739044441930,0.0001028,96643.0,96641.0,0.2099409]
[1739044442132,0.0091028,96643.0,96641.0,0.2109409]
[1739044442735,0.0001028,96643.0,96641.0,0.2099409]
[1739044442942,0.0001028,96643.0,96641.0,0.2159409]
[1739044443545,0.0001028,96643.0,96641.0,0.2169409]
[1739044443937,0.0001028,96643.0,96641.0,0.2129409]
[1739044444137,0.0001028,96643.0,96641.0,0.2169409]
[1739044445142,0.0001028,96643.0,96641.0,0.2159409]
[1739044446246,0.0001028,96643.0,96641.0,0.2149409]